[Event "Early-Titled-Tuesday-Blitz-January-23-2024"]
[Site "Chess.com"]
[Date "2024.01.23"]
[Round "1"]
[White "Gabrielian_Artur"]
[Black "jkidjr22"]
[Result "1-0"]
[WhiteElo "2793"]
[BlackElo "2435"]
[TimeControl "180+1"]
[EndTime "8:06:29 PST"]
[Termination "Gabrielian_Artur won by checkmate"]

1. e4 {[%clk 0:03:00.9]} 1... c5 {[%clk 0:02:58.9]} 2. Nf3 {[%clk 0:02:59.6]}
2... e6 {[%clk 0:02:59.4]} 3. Nc3 {[%clk 0:02:57.6]} 3... Nc6 {[%clk 0:02:57.4]}
4. h3 {[%clk 0:02:57.6]} 4... d5 {[%clk 0:02:54.3]} 5. Bb5 {[%clk 0:02:55.4]}
5... dxe4 {[%clk 0:02:46.1]} 6. Nxe4 {[%clk 0:02:52.3]} 6... Bd7 {[%clk
0:02:45.4]} 7. O-O {[%clk 0:02:50.9]} 7... Nf6 {[%clk 0:02:44.5]} 8. d3 {[%clk
0:02:47.9]} 8... a6 {[%clk 0:02:43.5]} 9. Bxc6 {[%clk 0:02:11.8]} 9... Bxc6
{[%clk 0:02:44.4]} 10. Qe2 {[%clk 0:02:07.8]} 10... Be7 {[%clk 0:02:43.1]} 11.
Re1 {[%clk 0:02:06.6]} 11... Qc7 {[%clk 0:02:41.9]} 12. b3 {[%clk 0:02:05.5]}
12... Nxe4 {[%clk 0:02:32.3]} 13. dxe4 {[%clk 0:02:05.4]} 13... e5 {[%clk
0:02:32.9]} 14. c4 {[%clk 0:02:02.2]} 14... O-O {[%clk 0:02:31]} 15. Bb2 {[%clk
0:02:00]} 15... f6 {[%clk 0:02:30.5]} 16. Nh2 {[%clk 0:01:57.5]} 16... Bd7
{[%clk 0:02:28.4]} 17. Rad1 {[%clk 0:01:56.2]} 17... Be6 {[%clk 0:02:28.2]} 18.
Ng4 {[%clk 0:01:56.1]} 18... Rfd8 {[%clk 0:02:27.5]} 19. Ne3 {[%clk 0:01:56]}
19... Bf8 {[%clk 0:02:21.8]} 20. Nd5 {[%clk 0:01:55.9]} 20... Qc6 {[%clk
0:02:21.1]} 21. a4 {[%clk 0:01:54]} 21... Rd7 {[%clk 0:02:18.7]} 22. Rd3 {[%clk
0:01:50.7]} 22... b5 {[%clk 0:02:15.9]} 23. axb5 {[%clk 0:01:46.2]} 23... axb5
{[%clk 0:02:16.8]} 24. cxb5 {[%clk 0:01:46.6]} 24... Qxb5 {[%clk 0:02:15.3]} 25.
Nxf6+ {[%clk 0:01:46.7]} 25... Kh8 {[%clk 0:01:54.6]} 26. Nxd7 {[%clk
0:01:46.1]} 26... Bxd7 {[%clk 0:01:55.5]} 27. Red1 {[%clk 0:01:44.9]} 27... Be6
{[%clk 0:01:54.9]} 28. Qf3 {[%clk 0:01:39.4]} 28... Be7 {[%clk 0:01:48.5]} 29.
Bxe5 {[%clk 0:01:36.7]} 29... Kg8 {[%clk 0:01:31.5]} 30. Qg3 {[%clk 0:01:35.4]}
30... g6 {[%clk 0:01:31.5]} 31. Ba1 {[%clk 0:01:29.1]} 31... Bf7 {[%clk
0:00:53.5]} 32. Qe5 {[%clk 0:01:25.1]} 32... Rxa1 {[%clk 0:00:52.7]} 33. Qxa1
{[%clk 0:01:23.1]} 33... Bxb3 {[%clk 0:00:51.7]} 34. Qa8+ {[%clk 0:01:10]} 34...
Kf7 {[%clk 0:00:49]} 35. Rf3+ {[%clk 0:01:08.4]} 35... Kg7 {[%clk 0:00:47.7]}
36. Qa7 {[%clk 0:01:06.4]} 36... Bxd1 {[%clk 0:00:42.8]} 37. Qxe7+ {[%clk
0:01:05.5]} 37... Kh6 {[%clk 0:00:43.7]} 38. Qf8+ {[%clk 0:01:01.7]} 38... Kh5
{[%clk 0:00:43.9]} 39. g4+ {[%clk 0:00:46.6]} 39... Kg5 {[%clk 0:00:44]} 40.
Qf4+ {[%clk 0:00:40.8]} 40... Kh4 {[%clk 0:00:39.7]} 41. g5+ {[%clk 0:00:40.6]}
41... Kh5 {[%clk 0:00:39.1]} 42. Qg4# {[%clk 0:00:40.5]} 1-0

[Event "Early-Titled-Tuesday-Blitz-January-23-2024"]
[Site "Chess.com"]
[Date "2024.01.23"]
[Round "1"]
[White "doctorcristian"]
[Black "hawes33"]
[Result "1-0"]
[WhiteElo "2609"]
[BlackElo "2263"]
[TimeControl "180+1"]
[EndTime "8:06:32 PST"]
[Termination "doctorcristian won by resignation"]

1. d4 {[%clk 0:02:22.7]} 1... c5 {[%clk 0:03:00.9]} 2. d5 {[%clk 0:02:18.2]}
2... Nf6 {[%clk 0:03:00.4]} 3. Nc3 {[%clk 0:02:18.1]} 3... g6 {[%clk 0:02:58.8]}
4. e4 {[%clk 0:02:18.7]} 4... d6 {[%clk 0:02:58.7]} 5. f3 {[%clk 0:02:18.9]}
5... Bg7 {[%clk 0:02:58.6]} 6. Bg5 {[%clk 0:02:19.5]} 6... O-O {[%clk
0:02:58.3]} 7. Qd2 {[%clk 0:02:20.2]} 7... Re8 {[%clk 0:02:57.2]} 8. Bb5 {[%clk
0:02:19.4]} 8... Bd7 {[%clk 0:02:55.7]} 9. Bxd7 {[%clk 0:02:19.5]} 9... Nbxd7
{[%clk 0:02:53.9]} 10. Nge2 {[%clk 0:02:20.1]} 10... Rb8 {[%clk 0:02:49.4]} 11.
a4 {[%clk 0:02:18.5]} 11... a6 {[%clk 0:02:35.1]} 12. O-O {[%clk 0:02:18.1]}
12... b5 {[%clk 0:02:33.9]} 13. axb5 {[%clk 0:02:19]} 13... axb5 {[%clk
0:02:34.4]} 14. Nd1 {[%clk 0:02:19.2]} 14... Ne5 {[%clk 0:02:32.6]} 15. b3
{[%clk 0:02:18.4]} 15... c4 {[%clk 0:02:32.6]} 16. Bh6 {[%clk 0:02:17.2]} 16...
Bh8 {[%clk 0:02:32.1]} 17. Ne3 {[%clk 0:02:16.5]} 17... Qc7 {[%clk 0:02:30]} 18.
Nd4 {[%clk 0:02:12]} 18... Rec8 {[%clk 0:02:27.2]} 19. Ra2 {[%clk 0:02:10]}
19... c3 {[%clk 0:02:21]} 20. Qe2 {[%clk 0:02:04.4]} 20... Qc5 {[%clk
0:02:19.4]} 21. Rd1 {[%clk 0:02:02.2]} 21... b4 {[%clk 0:02:10.9]} 22. Ra6
{[%clk 0:01:58.5]} 22... Rb6 {[%clk 0:02:07.6]} 23. Ra7 {[%clk 0:01:57.5]} 23...
Rc7 {[%clk 0:02:05.1]} 24. Ra8+ {[%clk 0:01:53.8]} 24... Rc8 {[%clk 0:02:05.2]}
25. Rxc8+ {[%clk 0:01:54.2]} 25... Qxc8 {[%clk 0:02:04.8]} 26. Ra1 {[%clk
0:01:54.3]} 26... Bg7 {[%clk 0:01:44.6]} 27. Bxg7 {[%clk 0:01:47.9]} 27... Kxg7
{[%clk 0:01:45.5]} 28. h4 {[%clk 0:01:48.1]} 28... h5 {[%clk 0:01:45]} 29. Ra5
{[%clk 0:01:39.5]} 29... Nfd7 {[%clk 0:01:38.2]} 30. Qd1 {[%clk 0:01:36.9]}
30... Ra6 {[%clk 0:01:35]} 31. Rb5 {[%clk 0:01:29.8]} 31... Qa8 {[%clk
0:01:31.6]} 32. Kh2 {[%clk 0:01:25.1]} 32... Ra1 {[%clk 0:01:26.9]} 33. Qe2
{[%clk 0:01:25.1]} 33... Qa7 {[%clk 0:01:25.2]} 34. Nc6 {[%clk 0:01:19.2]} 34...
Nxc6 {[%clk 0:01:23.3]} 35. dxc6 {[%clk 0:01:19.4]} 35... Ne5 {[%clk 0:01:23.5]}
36. Rb7 {[%clk 0:01:17.2]} 36... Qc5 {[%clk 0:01:19.4]} 37. c7 {[%clk
0:01:13.1]} 37... Ra8 {[%clk 0:01:06.3]} 38. Rb8 {[%clk 0:01:10.9]} 38... Qxc7
{[%clk 0:00:59.5]} 39. Rxa8 {[%clk 0:01:10.8]} 39... d5 {[%clk 0:00:58.4]} 40.
f4 {[%clk 0:01:10.6]} 40... Ng4+ {[%clk 0:00:55.8]} 41. Nxg4 {[%clk 0:01:10.5]}
41... Qxf4+ {[%clk 0:00:55.8]} 42. g3 {[%clk 0:01:11.1]} 42... Qd2 {[%clk
0:00:40.7]} 43. Qxd2 {[%clk 0:01:11.2]} 43... cxd2 {[%clk 0:00:41.6]} 44. Nf2
{[%clk 0:01:11.6]} 44... dxe4 {[%clk 0:00:41.3]} 45. Nd1 {[%clk 0:01:09.5]}
45... f5 {[%clk 0:00:40.1]} 46. Kg2 {[%clk 0:01:09.7]} 46... e5 {[%clk
0:00:40.1]} 47. Rd8 {[%clk 0:01:05.9]} 47... e3 {[%clk 0:00:36.3]} 48. Nxe3
{[%clk 0:01:04.5]} 48... f4 {[%clk 0:00:37.2]} 49. gxf4 {[%clk 0:01:04.6]} 49...
exf4 {[%clk 0:00:37.6]} 50. Nd1 {[%clk 0:01:04.6]} 1-0

[Event "Early-Titled-Tuesday-Blitz-January-23-2024"]
[Site "Chess.com"]
[Date "2024.01.23"]
[Round "1"]
[White "fks_stal_mielec"]
[Black "CarlosjPineror"]
[Result "0-1"]
[WhiteElo "2240"]
[BlackElo "2601"]
[TimeControl "180+1"]
[EndTime "8:06:32 PST"]
[Termination "CarlosjPineror won by checkmate"]

1. e4 {[%clk 0:02:59.8]} 1... c5 {[%clk 0:02:58.9]} 2. Nf3 {[%clk 0:02:57.3]}
2... e6 {[%clk 0:02:55.7]} 3. d4 {[%clk 0:02:54.8]} 3... cxd4 {[%clk 0:02:56.6]}
4. Nxd4 {[%clk 0:02:55]} 4... a6 {[%clk 0:02:57.3]} 5. Nd2 {[%clk 0:02:49.5]}
5... Qc7 {[%clk 0:02:57.5]} 6. c3 {[%clk 0:02:45.1]} 6... Nf6 {[%clk 0:02:58]}
7. Bd3 {[%clk 0:02:43.6]} 7... h5 {[%clk 0:02:57.4]} 8. N2f3 {[%clk 0:02:32.9]}
8... b6 {[%clk 0:02:55.4]} 9. Be3 {[%clk 0:02:30.1]} 9... Bb7 {[%clk 0:02:54.5]}
10. Qc2 {[%clk 0:02:28.8]} 10... d6 {[%clk 0:02:53.5]} 11. h3 {[%clk 0:02:20.3]}
11... Nbd7 {[%clk 0:02:53.7]} 12. b4 {[%clk 0:02:16.9]} 12... Rc8 {[%clk
0:02:53.1]} 13. Rc1 {[%clk 0:02:14.9]} 13... Qb8 {[%clk 0:02:52.6]} 14. Qb1
{[%clk 0:02:14.4]} 14... d5 {[%clk 0:02:52.5]} 15. exd5 {[%clk 0:02:12.3]} 15...
Nxd5 {[%clk 0:02:53.4]} 16. Bd2 {[%clk 0:02:10.9]} 16... b5 {[%clk 0:02:50.3]}
17. Be4 {[%clk 0:02:06.9]} 17... N7f6 {[%clk 0:02:48.4]} 18. Bxd5 {[%clk
0:02:04.4]} 18... Bxd5 {[%clk 0:02:49.3]} 19. O-O {[%clk 0:02:03.5]} 19... Bd6
{[%clk 0:02:47.8]} 20. Rfe1 {[%clk 0:01:57.1]} 20... Qb7 {[%clk 0:02:28]} 21.
Qd3 {[%clk 0:01:50]} 21... Ne4 {[%clk 0:02:27.7]} 22. Qe2 {[%clk 0:01:40.9]}
22... f5 {[%clk 0:02:25.7]} 23. Bg5 {[%clk 0:01:01.9]} 23... g6 {[%clk
0:02:21.4]} 24. h4 {[%clk 0:00:55.5]} 24... Kf7 {[%clk 0:02:18.4]} 25. Qe3
{[%clk 0:00:48.9]} 25... e5 {[%clk 0:02:15.8]} 26. Ne2 {[%clk 0:00:40.5]} 26...
Rhe8 {[%clk 0:02:05.7]} 27. Red1 {[%clk 0:00:38.2]} 27... Bb8 {[%clk 0:02:05]}
28. Qd3 {[%clk 0:00:33.4]} 28... Bc6 {[%clk 0:02:01.2]} 29. Be3 {[%clk
0:00:28.6]} 29... f4 {[%clk 0:01:54.7]} 30. Bc5 {[%clk 0:00:21.1]} 30... Bc7
{[%clk 0:01:54.6]} 31. Qc2 {[%clk 0:00:17.1]} 31... Rcd8 {[%clk 0:01:53.1]} 32.
Ng5+ {[%clk 0:00:17.3]} 32... Nxg5 {[%clk 0:01:52.5]} 33. hxg5 {[%clk
0:00:18.2]} 33... Bxg2 {[%clk 0:01:52.2]} 34. Rxd8 {[%clk 0:00:15.9]} 34... Rxd8
{[%clk 0:01:52]} 35. Qb3+ {[%clk 0:00:16]} 35... Qd5 {[%clk 0:01:48.6]} 36.
Qxd5+ {[%clk 0:00:15.4]} 36... Bxd5 {[%clk 0:01:49.5]} 37. a3 {[%clk 0:00:13.8]}
37... Bc4 {[%clk 0:01:49.1]} 38. Kf1 {[%clk 0:00:11.2]} 38... Rd2 {[%clk
0:01:48.3]} 39. Re1 {[%clk 0:00:11.7]} 39... Rxe2 {[%clk 0:01:48.7]} 40. Rxe2
{[%clk 0:00:11.8]} 40... f3 {[%clk 0:01:49.6]} 41. Ke1 {[%clk 0:00:10.3]} 41...
Bxe2 {[%clk 0:01:50.5]} 42. Be3 {[%clk 0:00:10.6]} 42... Ke6 {[%clk 0:01:50.3]}
43. Bd2 {[%clk 0:00:11.5]} 43... e4 {[%clk 0:01:50]} 44. Be3 {[%clk 0:00:12.4]}
44... Be5 {[%clk 0:01:50.2]} 45. Bd2 {[%clk 0:00:13.3]} 45... Bg7 {[%clk
0:01:50.3]} 46. Be3 {[%clk 0:00:14.2]} 46... Bxc3+ {[%clk 0:01:50.6]} 47. Bd2
{[%clk 0:00:15.1]} 47... Bxd2+ {[%clk 0:01:51.3]} 48. Kxd2 {[%clk 0:00:14.2]}
48... Kf5 {[%clk 0:01:52.2]} 49. Ke3 {[%clk 0:00:14.7]} 49... h4 {[%clk
0:01:51.4]} 50. a4 {[%clk 0:00:15.5]} 50... h3 {[%clk 0:01:51.3]} 51. a5 {[%clk
0:00:15.7]} 51... h2 {[%clk 0:01:51.2]} 52. Kd2 {[%clk 0:00:16]} 52... h1=Q
{[%clk 0:01:51.5]} 53. Ke3 {[%clk 0:00:16.4]} 53... Qc1+ {[%clk 0:01:51.8]} 54.
Kd4 {[%clk 0:00:15.9]} 54... Qd2+ {[%clk 0:01:52.3]} 55. Kc5 {[%clk 0:00:14.9]}
55... Qc3+ {[%clk 0:01:53]} 56. Kb6 {[%clk 0:00:15]} 56... Qxb4 {[%clk
0:01:53.7]} 57. Ka7 {[%clk 0:00:15]} 57... Qxa5 {[%clk 0:01:52.9]} 58. Kb7
{[%clk 0:00:14.8]} 58... Qc3 {[%clk 0:01:53.3]} 59. Ka7 {[%clk 0:00:15.7]} 59...
Qc6 {[%clk 0:01:50.4]} 60. Kb8 {[%clk 0:00:15]} 60... Qd7 {[%clk 0:01:51.1]} 61.
Ka8 {[%clk 0:00:14.4]} 61... b4 {[%clk 0:01:50.9]} 62. Kb8 {[%clk 0:00:14.5]}
62... a5 {[%clk 0:01:51.7]} 63. Ka8 {[%clk 0:00:15.1]} 63... Ba6 {[%clk
0:01:51.9]} 64. Kb8 {[%clk 0:00:16]} 64... Qb7# {[%clk 0:01:52.2]} 0-1

[Event "Early-Titled-Tuesday-Blitz-January-23-2024"]
[Site "Chess.com"]
[Date "2024.01.23"]
[Round "1"]
[White "BashirliSaadat"]
[Black "Alexei_Kornev"]
[Result "0-1"]
[WhiteElo "2405"]
[BlackElo "2716"]
[TimeControl "180+1"]
[EndTime "8:06:34 PST"]
[Termination "Alexei_Kornev won by resignation"]

1. e4 {[%clk 0:03:00.9]} 1... c5 {[%clk 0:02:59.7]} 2. Nf3 {[%clk 0:03:00.5]}
2... d6 {[%clk 0:02:59.8]} 3. Bb5+ {[%clk 0:02:58.5]} 3... Bd7 {[%clk 0:02:59]}
4. Bxd7+ {[%clk 0:02:58.2]} 4... Nxd7 {[%clk 0:02:59.9]} 5. O-O {[%clk
0:02:58.3]} 5... Ngf6 {[%clk 0:02:59.7]} 6. Re1 {[%clk 0:02:58.5]} 6... Rc8
{[%clk 0:02:56.3]} 7. d3 {[%clk 0:02:54.7]} 7... g6 {[%clk 0:02:55.1]} 8. c3
{[%clk 0:02:52.4]} 8... Bg7 {[%clk 0:02:53.6]} 9. d4 {[%clk 0:02:50.9]} 9... O-O
{[%clk 0:02:51.8]} 10. Bg5 {[%clk 0:02:45.8]} 10... h6 {[%clk 0:02:50.2]} 11.
Bf4 {[%clk 0:02:44.7]} 11... Qb6 {[%clk 0:02:47.8]} 12. Qd2 {[%clk 0:02:43.5]}
12... Kh7 {[%clk 0:02:46.5]} 13. Na3 {[%clk 0:02:41.2]} 13... cxd4 {[%clk
0:02:46.1]} 14. cxd4 {[%clk 0:02:40.4]} 14... e6 {[%clk 0:02:33.4]} 15. h3
{[%clk 0:02:21.6]} 15... d5 {[%clk 0:02:33.1]} 16. e5 {[%clk 0:02:15.9]} 16...
Ne4 {[%clk 0:02:32.2]} 17. Qe2 {[%clk 0:02:14]} 17... Rc6 {[%clk 0:02:24.8]} 18.
Rac1 {[%clk 0:02:11.6]} 18... Rfc8 {[%clk 0:02:23.9]} 19. Rxc6 {[%clk 0:02:04]}
19... Rxc6 {[%clk 0:02:21.5]} 20. Rc1 {[%clk 0:02:04.4]} 20... Nb8 {[%clk
0:02:10.6]} 21. Qb5 {[%clk 0:01:58.4]} 21... Rxc1+ {[%clk 0:02:06.6]} 22. Bxc1
{[%clk 0:01:58.2]} 22... Qc7 {[%clk 0:02:06.5]} 23. Be3 {[%clk 0:01:53.5]} 23...
Nc6 {[%clk 0:02:06]} 24. Kh2 {[%clk 0:01:48.7]} 24... a6 {[%clk 0:02:06]} 25.
Qd3 {[%clk 0:01:47.2]} 25... f6 {[%clk 0:01:54.4]} 26. Bf4 {[%clk 0:01:26]}
26... fxe5 {[%clk 0:01:53.7]} 27. dxe5 {[%clk 0:00:49.8]} 27... Nxe5 {[%clk
0:01:53.1]} 28. Qe3 {[%clk 0:00:43.1]} 28... Nxf3+ {[%clk 0:01:39.9]} 29. Qxf3
{[%clk 0:00:44]} 29... Qf7 {[%clk 0:01:36.6]} 30. Qe3 {[%clk 0:00:22.2]} 30...
Bxb2 {[%clk 0:01:26]} 31. Nc2 {[%clk 0:00:19.1]} 31... Bg7 {[%clk 0:01:20.5]}
32. f3 {[%clk 0:00:18.6]} 32... Nc3 {[%clk 0:01:20.6]} 33. Ne1 {[%clk
0:00:12.8]} 33... d4 {[%clk 0:01:17.4]} 34. Qd2 {[%clk 0:00:11]} 34... e5 {[%clk
0:01:11.1]} 35. Bg3 {[%clk 0:00:10.4]} 35... Qxa2 {[%clk 0:01:11.4]} 36. Qd3
{[%clk 0:00:08.3]} 36... b5 {[%clk 0:01:04.9]} 37. Nc2 {[%clk 0:00:08]} 37...
Qc4 {[%clk 0:01:04.4]} 38. Qe4 {[%clk 0:00:07.2]} 38... Nxe4 {[%clk 0:01:03.6]}
0-1

[Event "Early-Titled-Tuesday-Blitz-January-23-2024"]
[Site "Chess.com"]
[Date "2024.01.23"]
[Round "1"]
[White "margarita_2703"]
[Black "CristianS27"]
[Result "1/2-1/2"]
[WhiteElo "2286"]
[BlackElo "2605"]
[TimeControl "180+1"]
[EndTime "8:06:35 PST"]
[Termination "Game drawn by repetition"]

1. e4 {[%clk 0:03:00.9]} 1... e5 {[%clk 0:02:48.2]} 2. Nf3 {[%clk 0:03:00.4]}
2... Nc6 {[%clk 0:02:46.9]} 3. Bc4 {[%clk 0:02:58.2]} 3... Nf6 {[%clk
0:02:46.9]} 4. O-O {[%clk 0:02:57.1]} 4... Nxe4 {[%clk 0:02:45.7]} 5. Nc3 {[%clk
0:02:56.6]} 5... Nxc3 {[%clk 0:02:40.2]} 6. dxc3 {[%clk 0:02:57.5]} 6... Be7
{[%clk 0:02:38.3]} 7. Qd5 {[%clk 0:02:56.5]} 7... O-O {[%clk 0:02:38.1]} 8. Nxe5
{[%clk 0:02:55.9]} 8... Nxe5 {[%clk 0:02:39]} 9. Qxe5 {[%clk 0:02:56.8]} 9... c6
{[%clk 0:02:34.6]} 10. Bd3 {[%clk 0:02:51.9]} 10... d5 {[%clk 0:02:28.1]} 11.
Re1 {[%clk 0:02:50.5]} 11... Bf6 {[%clk 0:02:20.9]} 12. Qe2 {[%clk 0:02:49]}
12... Qd6 {[%clk 0:02:06.6]} 13. Qh5 {[%clk 0:02:38.1]} 13... g6 {[%clk
0:02:05.4]} 14. Qf3 {[%clk 0:02:37.4]} 14... Bg7 {[%clk 0:01:59.4]} 15. Bf4
{[%clk 0:02:37]} 15... Qf6 {[%clk 0:01:59.8]} 16. Qg3 {[%clk 0:02:32.1]} 16...
Qd8 {[%clk 0:01:15.5]} 17. Be5 {[%clk 0:02:28.9]} 17... Bxe5 {[%clk 0:01:08.4]}
18. Qxe5 {[%clk 0:02:29.8]} 18... Bd7 {[%clk 0:01:03.4]} 19. Qd6 {[%clk
0:02:19.2]} 19... Be6 {[%clk 0:00:44.3]} 20. Qg3 {[%clk 0:02:17.7]} 20... Qf6
{[%clk 0:00:40.1]} 21. h4 {[%clk 0:02:13.3]} 21... Bf5 {[%clk 0:00:37.5]} 22. h5
{[%clk 0:02:10.8]} 22... Rfe8 {[%clk 0:00:37]} 23. hxg6 {[%clk 0:02:10.3]} 23...
hxg6 {[%clk 0:00:37.7]} 24. Qf4 {[%clk 0:02:05.9]} 24... Kg7 {[%clk 0:00:31.3]}
25. Bxf5 {[%clk 0:01:59.9]} 25... Qxf5 {[%clk 0:00:32.2]} 26. Qxf5 {[%clk
0:01:59.7]} 26... gxf5 {[%clk 0:00:33.1]} 27. g3 {[%clk 0:01:56.9]} 27... Kf6
{[%clk 0:00:27.7]} 28. Kg2 {[%clk 0:01:56.4]} 28... Re4 {[%clk 0:00:21.9]} 29.
f3 {[%clk 0:01:56.2]} 29... Re6 {[%clk 0:00:20.8]} 30. Kf2 {[%clk 0:01:50.7]}
30... Rae8 {[%clk 0:00:20.2]} 31. a4 {[%clk 0:01:49.9]} 31... a5 {[%clk
0:00:20.1]} 32. Rad1 {[%clk 0:01:44.1]} 32... f4 {[%clk 0:00:20.2]} 33. gxf4
{[%clk 0:01:40.7]} 33... Rxe1 {[%clk 0:00:19]} 34. Rxe1 {[%clk 0:01:39.5]} 34...
Rxe1 {[%clk 0:00:19.9]} 35. Kxe1 {[%clk 0:01:40.4]} 35... Kf5 {[%clk 0:00:20.8]}
36. Ke2 {[%clk 0:01:40.8]} 36... Kxf4 {[%clk 0:00:20.6]} 37. Kf2 {[%clk
0:01:41.4]} 37... b5 {[%clk 0:00:16]} 38. axb5 {[%clk 0:01:35]} 38... cxb5
{[%clk 0:00:16.1]} 39. Ke2 {[%clk 0:01:35.9]} 39... a4 {[%clk 0:00:09.5]} 40.
Kf2 {[%clk 0:01:34.7]} 40... f6 {[%clk 0:00:08.1]} 41. Ke2 {[%clk 0:01:32.3]}
41... Ke5 {[%clk 0:00:03.7]} 42. Ke3 {[%clk 0:01:32]} 42... Kf5 {[%clk
0:00:04.3]} 43. Ke2 {[%clk 0:01:27.7]} 43... Ke5 {[%clk 0:00:04.9]} 44. Ke3
{[%clk 0:01:27.8]} 44... Kf5 {[%clk 0:00:03.1]} 45. Ke2 {[%clk 0:01:27.2]} 45...
Kf4 {[%clk 0:00:03.6]} 46. Kf2 {[%clk 0:01:27.3]} 46... Ke5 {[%clk 0:00:03.2]}
47. Ke3 {[%clk 0:01:27.5]} 1/2-1/2

[Event "Early-Titled-Tuesday-Blitz-January-23-2024"]
[Site "Chess.com"]
[Date "2024.01.23"]
[Round "1"]
[White "I_am_Javi"]
[Black "Eloist"]
[Result "1-0"]
[WhiteElo "2781"]
[BlackElo "2436"]
[TimeControl "180+1"]
[EndTime "8:06:38 PST"]
[Termination "I_am_Javi won by resignation"]

1. e4 {[%clk 0:02:02.7]} 1... e6 {[%clk 0:02:58.9]} 2. Nf3 {[%clk 0:01:58.1]}
2... d5 {[%clk 0:02:59.1]} 3. Nc3 {[%clk 0:01:54.5]} 3... Nf6 {[%clk 0:02:57.9]}
4. e5 {[%clk 0:01:54.5]} 4... Nfd7 {[%clk 0:02:58]} 5. d4 {[%clk 0:01:55.4]}
5... c5 {[%clk 0:02:58.2]} 6. Ne2 {[%clk 0:01:54.7]} 6... cxd4 {[%clk
0:02:53.5]} 7. Nexd4 {[%clk 0:01:55.6]} 7... Nc6 {[%clk 0:02:52.7]} 8. Nxc6
{[%clk 0:01:55.9]} 8... bxc6 {[%clk 0:02:52.3]} 9. Bd3 {[%clk 0:01:56.8]} 9...
Ba6 {[%clk 0:02:50.8]} 10. O-O {[%clk 0:01:55.6]} 10... Bxd3 {[%clk 0:02:50]}
11. cxd3 {[%clk 0:01:55.9]} 11... c5 {[%clk 0:02:40.2]} 12. Re1 {[%clk
0:01:52.4]} 12... Be7 {[%clk 0:02:39.2]} 13. g3 {[%clk 0:01:49.1]} 13... O-O
{[%clk 0:02:37.7]} 14. h4 {[%clk 0:01:49.6]} 14... Rb8 {[%clk 0:02:33.1]} 15. b3
{[%clk 0:01:48.9]} 15... f6 {[%clk 0:02:31.4]} 16. Bf4 {[%clk 0:01:46.4]} 16...
fxe5 {[%clk 0:02:19.2]} 17. Nxe5 {[%clk 0:01:47.3]} 17... Nxe5 {[%clk
0:02:14.8]} 18. Bxe5 {[%clk 0:01:47.1]} 18... Bd6 {[%clk 0:02:08.3]} 19. Qg4
{[%clk 0:01:45.4]} 19... Bxe5 {[%clk 0:02:03.5]} 20. Qxe6+ {[%clk 0:01:37.8]}
20... Kh8 {[%clk 0:01:58.3]} 21. Rxe5 {[%clk 0:01:37.1]} 21... Rf6 {[%clk
0:01:38.2]} 22. Qxd5 {[%clk 0:01:33.3]} 22... Rd6 {[%clk 0:01:36.3]} 23. Qxc5
{[%clk 0:01:33.5]} 23... Rxd3 {[%clk 0:01:36.1]} 24. Rae1 {[%clk 0:01:32.8]}
24... Rd1 {[%clk 0:01:29.1]} 25. Qxa7 {[%clk 0:01:29.7]} 25... Rxe1+ {[%clk
0:01:26.5]} 26. Rxe1 {[%clk 0:01:30.6]} 26... h6 {[%clk 0:01:21]} 27. Qe7 {[%clk
0:01:29.5]} 27... Qd2 {[%clk 0:01:16.7]} 28. Re2 {[%clk 0:01:29.5]} 28... Qd1+
{[%clk 0:01:14.8]} 29. Kg2 {[%clk 0:01:30]} 29... Qd5+ {[%clk 0:01:08.6]} 30.
Qe4 {[%clk 0:01:30.4]} 30... Qd7 {[%clk 0:01:04.8]} 31. Qf3 {[%clk 0:01:29.5]}
31... Rc8 {[%clk 0:00:59.6]} 32. Re4 {[%clk 0:01:24.6]} 32... Qd2 {[%clk
0:00:55]} 33. Rf4 {[%clk 0:01:24.2]} 33... Kg8 {[%clk 0:00:47.5]} 34. a4 {[%clk
0:01:20.4]} 34... Qb2 {[%clk 0:00:31]} 35. a5 {[%clk 0:01:17.9]} 35... Qa3
{[%clk 0:00:27]} 36. Ra4 {[%clk 0:01:12.1]} 36... Qd6 {[%clk 0:00:24.6]} 37. a6
{[%clk 0:01:09.7]} 37... Rf8 {[%clk 0:00:24.7]} 38. Rf4 {[%clk 0:00:58.6]} 38...
Rxf4 {[%clk 0:00:16.2]} 39. Qxf4 {[%clk 0:00:59.5]} 39... Qc6+ {[%clk
0:00:14.1]} 40. Kh2 {[%clk 0:00:59.4]} 40... Kh8 {[%clk 0:00:12.4]} 41. a7
{[%clk 0:00:58.4]} 1-0

[Event "Early-Titled-Tuesday-Blitz-January-23-2024"]
[Site "Chess.com"]
[Date "2024.01.23"]
[Round "1"]
[White "01Roman"]
[Black "kleinebeer98"]
[Result "0-1"]
[WhiteElo "2467"]
[BlackElo "2849"]
[TimeControl "180+1"]
[EndTime "8:06:40 PST"]
[Termination "kleinebeer98 won by resignation"]

1. Nf3 {[%clk 0:03:00.9]} 1... Nf6 {[%clk 0:02:56.4]} 2. c4 {[%clk 0:02:58.8]}
2... Nc6 {[%clk 0:02:56.5]} 3. d4 {[%clk 0:02:54.9]} 3... e6 {[%clk 0:02:56.5]}
4. a3 {[%clk 0:02:47.9]} 4... d5 {[%clk 0:02:54.1]} 5. g3 {[%clk 0:02:43]} 5...
dxc4 {[%clk 0:02:50.1]} 6. Bg2 {[%clk 0:02:42]} 6... Be7 {[%clk 0:02:48.5]} 7.
O-O {[%clk 0:02:40.1]} 7... O-O {[%clk 0:02:48.5]} 8. Bg5 {[%clk 0:02:35.1]}
8... Rb8 {[%clk 0:02:46.8]} 9. e3 {[%clk 0:02:33.2]} 9... b5 {[%clk 0:02:45.1]}
10. a4 {[%clk 0:02:32.4]} 10... a6 {[%clk 0:02:41.9]} 11. axb5 {[%clk
0:02:25.9]} 11... axb5 {[%clk 0:02:42.8]} 12. b3 {[%clk 0:02:26.2]} 12... cxb3
{[%clk 0:02:34.3]} 13. Qxb3 {[%clk 0:02:27.1]} 13... Bd7 {[%clk 0:02:26.4]} 14.
Nc3 {[%clk 0:02:25.3]} 14... b4 {[%clk 0:02:25.6]} 15. Na4 {[%clk 0:02:18.7]}
15... Na5 {[%clk 0:02:25.6]} 16. Qb1 {[%clk 0:02:12.7]} 16... Nd5 {[%clk
0:02:21.9]} 17. Bxe7 {[%clk 0:02:11.8]} 17... Qxe7 {[%clk 0:02:22.8]} 18. Nc5
{[%clk 0:02:09.7]} 18... Nc4 {[%clk 0:02:21.3]} 19. Rc1 {[%clk 0:02:08.2]} 19...
Nc3 {[%clk 0:02:21.3]} 20. Qd3 {[%clk 0:02:05.2]} 20... Bb5 {[%clk 0:02:22]} 21.
Rxc3 {[%clk 0:01:45.5]} 21... bxc3 {[%clk 0:02:22]} 22. Qxc3 {[%clk 0:01:46.4]}
22... h6 {[%clk 0:02:02.6]} 23. h4 {[%clk 0:01:39.5]} 23... c6 {[%clk
0:01:58.5]} 24. Ne5 {[%clk 0:01:06.7]} 24... Nxe5 {[%clk 0:01:51.6]} 25. dxe5
{[%clk 0:01:07.6]} 25... Rfd8 {[%clk 0:01:50.3]} 26. Ne4 {[%clk 0:01:04.4]}
26... Rd3 {[%clk 0:01:37.4]} 27. Qc1 {[%clk 0:01:00]} 27... Qb4 {[%clk
0:01:20.9]} 28. Nd6 {[%clk 0:00:56.5]} 28... c5 {[%clk 0:01:00.7]} 29. Rb1
{[%clk 0:00:48]} 29... Rb3 {[%clk 0:01:00.2]} 30. Rxb3 {[%clk 0:00:46]} 30...
Qxb3 {[%clk 0:01:01.1]} 31. Qxc5 {[%clk 0:00:45.1]} 31... Bd3 {[%clk 0:00:52]}
32. Qc7 {[%clk 0:00:40.1]} 32... Bg6 {[%clk 0:00:51.3]} 33. Bb7 {[%clk
0:00:20.6]} 33... Rf8 {[%clk 0:00:48.6]} 34. g4 {[%clk 0:00:17.8]} 34... Qd1+
{[%clk 0:00:47.8]} 35. Kh2 {[%clk 0:00:17.1]} 35... Qxg4 {[%clk 0:00:48.7]} 0-1